fUST/lending_fUST_20240823
["ID","MTS","AMOUNT","RATE_DAILY","PERIOD"]
[335585472,1724342636386,201.03836776,0.00025,60]
[335585479,1724342952371,7014.13255051,0.00011999,2]
[335585489,1724343002876,8845.25511796,0.00011999,2]
[335585491,1724343028669,6746.79797906,0.00011999,2]
[335585580,1724343034543,10000.0,0.00025,60]
[335585604,1724343038522,-801.33802378,0.00012898,2]
[335585606,1724343038532,-155.26942505,0.00012898,2]
[335585608,1724343038543,-544.06785329,0.00012934,2]
[335585611,1724343038553,-223.54518659,0.00012971,2]
[335585613,1724343038563,-654.42759972,0.00012985,2]
[335585615,1724343038573,-320.36544031,0.00012985,2]
[335585617,1724343038583,-320.36544031,0.00012985,2]
[335585619,1724343038592,-864.44196526,0.00013333,2]
[335585622,1724343038612,-375.57866255,0.00013333,2]
[335585624,1724343038625,-805.62407491,0.00013597,2]
[335585826,1724343040649,-1322.99531825,0.00013597,2]
[335585828,1724343040660,-130.01701138,0.00014245,2]
[335585855,1724343040882,-175.0,0.00028767,120]
[335585860,1724343040924,-838.98304868,0.00028767,120]
[335585864,1724343040948,-1056.5544873,0.0003,120]
[335586101,1724343043652,-646.51605996,0.00014245,2]
[335586103,1724343043662,-542.8504,0.00014247,2]
[335586105,1724343043672,-300.0,0.00014518,2]
[335586106,1724343043681,-839.32156208,0.00014691,2]
[335586107,1724343043693,-24060.67843792,0.00014691,2]
[335586108,1724343043703,-420.0,0.0001597,2]
[335586109,1724343043713,-4788.08557048,0.00018376,2]
[335586114,1724343043759,-835.17862405,0.00018376,2]
[335586116,1724343043769,-500.0,0.00018521,2]
[335586118,1724343043779,-64809.90108091,0.00018589,2]
[335586123,1724343043815,-3013.65,0.00018589,2]
[335586241,1724343045157,10000.0,0.00025,60]
[335586261,1724343054044,1013.98304868,0.00028767,120]
[335586262,1724343064453,10000.0,0.00027,120]
[335586263,1724343077182,10000.0,0.00027,120]
[335586267,1724343570853,-8000.800001,0.00028767,120]
[335586268,1724343570918,-1999.199999,0.00027,60]
[335586269,1724343605299,-985.21695032,0.00028767,120]
[335586270,1724343605367,-445.60981677,0.00028767,120]
[335586271,1724343605487,-84.58036746,0.00028767,120]
[335586272,1724343605511,-115.41963254,0.0003,120]
[335586273,1724343605588,-18.31686984,0.0003,120]
[335586274,1724343605617,-151.0,0.0003,120]
[335586275,1724343605641,-151.0,0.0003,120]
[335586276,1724343605665,-403.2465463,0.0003,120]
[335586277,1724343682910,-536.49,0.0002988,30]
[335586281,1724343931436,115.41963254,0.0003,120]
[335586337,1724344232699,-460.93692866,0.00012985,2]
[335586339,1724344232709,-360.74966456,0.00013698,2]
[335586341,1724344232718,-515.70788,0.00014247,2]
[335586342,1724344232728,-933.89722372,0.00014519,2]
[335586343,1724344232738,-9822.50830306,0.00016252,2]
[335586344,1724344232897,-1166.18233285,0.00016252,2]
[335586395,1724344238870,-1346.5,0.00016252,2]
[335586396,1724344238923,-5345.35252089,0.00016252,2]
[335586397,1724344238933,-5623.26419453,0.00018268,2]
[335586398,1724344238944,-500.0,0.00018521,2]
[335586399,1724344238954,-916.84447358,0.0001856,2]
[335586400,1724344238964,-2640.95997503,0.00018571,2]
[335586401,1724344238974,-500.0,0.00018589,2]
[335586402,1724344238985,-298.21449572,0.00018589,2]
[335586403,1724344238995,-4489.20180825,0.0001866,9]
[335586550,1724344240889,-175.31391914,0.0001866,9]
[335586552,1724344240898,-37609.0469492,0.0001866,2]
[335587316,1724344421633,20000.0,0.00025,60]
[335587317,1724344441340,14000.0,0.00025,60]
[335587319,1724344464349,769.31396087,0.00025,60]
[335587335,1724344675855,150.0,0.00025,60]
[335587353,1724344860223,843.26,0.00010959,2]
[335587354,1724344899837,6746.79797906,0.00010959,2]
[335587355,1724344915014,1076.00134389,0.00010959,2]
[335587356,1724344942945,530.19018423,0.00028767,120]
[335587357,1724344987314,6746.79797906,0.00010959,2]
[335587358,1724344989573,472.39,0.00027,120]
[335587359,1724344989997,989.26035265,0.00010959,2]
[335587362,1724345067293,6746.79797906,0.00010959,2]
[335587363,1724345112078,330.0,0.00027,120]
[335587364,1724345156326,6746.79797906,0.00010959,2]
[335587365,1724345230425,21073.0,0.00027,120]
[335587367,1724345256345,6746.79797906,0.00010959,2]
[335587368,1724345271313,6746.79797906,0.00010959,2]
[335587373,1724345397315,6746.79797906,0.00010959,2]
[335587479,1724345437956,-2128.61939316,0.00012356,2]
[335587480,1724345437967,-1473.95318176,0.00012516,2]
[335587481,1724345437979,-1500.0,0.00012516,2]
[335587482,1724345437989,-309.11901389,0.00012886,2]
[335587483,1724345437998,-521.35824671,0.00012886,2]
[335587484,1724345438010,-544.06785329,0.00012898,2]
[335587485,1724345438023,-240.49977637,0.00012934,2]
[335587486,1724345438032,-187.57857498,0.00012934,2]
[335587487,1724345438043,-236.31300836,0.00013025,2]
[335587488,1724345438055,-300.0,0.00013281,2]
[335587489,1724345438066,-300.0,0.00013281,2]
[335587490,1724345438077,-24890.0,0.00013545,2]
[335587491,1724345438087,-802.23891433,0.00013597,2]
[335587492,1724345438098,-156.36845768,0.00013599,2]
[335587493,1724345438108,-641.984531,0.00013699,2]
[335587494,1724345438120,-518.493561,0.00014247,2]
[335587495,1724345438130,-100000.0,0.00017199,2]
[335587496,1724345438140,-106768.279334,0.00017289,2]
[335587497,1724345438151,-2000.0,0.00017637,2]
[335587498,1724345438162,-181.68851049,0.00017889,2]
[335587499,1724345438172,-500.0,0.00017978,2]
[335587500,1724345438182,-500.0,0.00017978,2]
[335587501,1724345438192,-187.01502825,0.00017978,2]
[335587502,1724345438204,-549.99959624,0.00017978,2]
[335587503,1724345438215,-278.25005443,0.00017978,2]
[335587504,1724345438227,-500.0,0.00017978,2]
[335587505,1724345438238,-500.0,0.00017978,2]
[335587506,1724345438248,-500.0,0.00017978,2]
[335587507,1724345438259,-500.0,0.00017978,2]
[335587508,1724345438270,-500.0,0.00017978,2]
[335587509,1724345438280,-500.0,0.00017978,2]
[335587510,1724345438290,-500.0,0.00017978,2]
[335587511,1724345438300,-500.0,0.00017978,2]
[335587512,1724345438311,-500.0,0.00017978,2]
[335587513,1724345438322,-600.0,0.00017978,2]
[335587514,1724345438333,-500.0,0.00017978,2]
[335587515,1724345438343,-500.0,0.00017978,2]
[335587516,1724345438353,-535.96906929,0.00017978,2]
[335587517,1724345438365,-535.96906929,0.00017978,2]
[335587518,1724345438374,-535.96906929,0.00017978,2]
[335587519,1724345438384,-535.96906929,0.00017978,2]
[335587520,1724345438393,-535.96906929,0.00017978,2]
[335587521,1724345438403,-535.96906929,0.00017978,2]
[335587522,1724345438415,-535.96906929,0.00017978,2]
[335587523,1724345438427,-535.96906929,0.00017978,2]
[335587524,1724345438436,-535.96906929,0.00017978,2]
[335587525,1724345438445,-535.96906929,0.00017978,2]
[335587526,1724345438456,-535.96906929,0.00017978,2]
[335587527,1724345438467,-535.96906929,0.00017978,2]
[335587528,1724345438478,-535.96906929,0.00017978,2]
[335587529,1724345438488,-535.96906929,0.00017978,2]
[335587530,1724345438497,-535.96906929,0.00017978,2]
[335587531,1724345438508,-572.08872395,0.00017978,2]
[335587532,1724345438518,-572.08872395,0.00017978,2]
[335587533,1724345438528,-572.08872395,0.00017978,2]
[335587534,1724345438539,-572.08872395,0.00017978,2]
[335587535,1724345438553,-572.08872395,0.00017978,2]
[335587536,1724345438562,-572.08872395,0.00017978,2]
[335587537,1724345438571,-151.0,0.00017978,2]
[335587538,1724345438580,-12611.49073064,0.00017978,9]
[335587539,1724345438589,-320304.838003,0.00017979,2]
[335587540,1724345438598,-151.0,0.00017979,2]
[335587541,1724345438609,-151.0,0.00017979,2]
[335587542,1724345438619,-151.0,0.00017989,2]
[335587543,1724345438630,-151.0,0.00017989,2]
[335587544,1724345438639,-555.371584,0.00017989,2]
[335587545,1724345438649,-308.491386,0.00017989,2]
[335587546,1724345438660,-555.371584,0.00017989,2]
[335587547,1724345438672,-308.491386,0.00017989,2]
[335587548,1724345438682,-151.0,0.00017989,2]
[335587549,1724345438692,-151.0,0.00017989,2]
[335587550,1724345438702,-151.0,0.00017989,2]
[335587551,1724345438711,-151.0,0.00017989,2]
[335587552,1724345438722,-5000.0,0.00018,2]
[335587553,1724345438731,-5000.0,0.00018,2]
[335587554,1724345438741,-151.0,0.0001807,2]
[335587555,1724345438751,-151.0,0.0001807,2]
[335587556,1724345438760,-151.847524,0.0001807,2]
[335587557,1724345438770,-555.371584,0.0001807,2]
[335587558,1724345438779,-308.491386,0.0001807,2]
[335587559,1724345438790,-555.371584,0.0001807,2]
[335587560,1724345438800,-308.491386,0.0001807,2]
[335587561,1724345438809,-151.0,0.0001807,2]
[335587562,1724345438819,-151.0,0.0001807,2]
[335587563,1724345438829,-151.0,0.0001807,2]
[335587564,1724345438839,-151.0,0.0001807,2]
[335587565,1724345438849,-151.0,0.0001807,2]
[335587566,1724345438862,-616.144243,0.0001807,2]
[335587567,1724345438872,-616.144243,0.0001807,2]
[335587568,1724345438882,-838.596389,0.0001807,2]
[335587569,1724345438891,-838.596389,0.0001807,2]
[335587570,1724345438903,-151.0,0.0001807,2]
[335587571,1724345438913,-151.0,0.0001807,2]
[335587572,1724345438923,-285.101619,0.0001807,2]
[335587573,1724345438933,-285.101619,0.0001807,2]
[335587574,1724345438942,-839.287251,0.0001807,2]
[335587575,1724345438951,-839.287251,0.0001807,2]
[335587576,1724345438960,-2542.857212,0.0001807,2]
[335587577,1724345438970,-151.0,0.0001807,2]
[335587578,1724345438979,-2542.857212,0.0001807,2]
[335587579,1724345438989,-151.0,0.0001807,2]
[335587580,1724345438999,-151.0,0.00018071,2]
[335587581,1724345439009,-151.0,0.00018071,2]
[335587582,1724345439018,-151.0,0.00018071,2]
[335587583,1724345439028,-485.242987,0.00018071,2]
[335587584,1724345439037,-485.242987,0.00018071,2]
[335587585,1724345439048,-151.0,0.00018071,2]
[335587586,1724345439057,-151.0,0.00018071,2]
[335587587,1724345439067,-306.488062,0.00018071,2]
[335587588,1724345439076,-306.488062,0.00018071,2]
[335587589,1724345439086,-555.371584,0.00018071,2]
[335587590,1724345439096,-308.491386,0.00018071,2]
[335587591,1724345439106,-555.371584,0.00018071,2]
[335587592,1724345439116,-308.491386,0.00018071,2]
[335587593,1724345439127,-374.879594,0.00018071,2]
[335587594,1724345439138,-151.0,0.00018071,2]
[335587595,1724345439148,-374.879594,0.00018071,2]
[335587596,1724345439158,-151.0,0.00018071,2]
[335587597,1724345439168,-151.0,0.00018071,2]
[335587598,1724345439178,-151.963359,0.00018071,2]
[335587599,1724345439188,-151.0,0.00018071,2]
[335587600,1724345439198,-616.144243,0.00018071,2]
[335587601,1724345439208,-616.144243,0.00018071,2]
[335587602,1724345439219,-838.596389,0.00018071,2]
[335587603,1724345439238,-838.596389,0.00018071,2]
[335587604,1724345439250,-151.0,0.00018071,2]
[335587605,1724345439260,-151.0,0.00018071,2]
[335587606,1724345439270,-285.101619,0.00018071,2]
[335587607,1724345439280,-285.101619,0.00018071,2]
[335587608,1724345439290,-839.287251,0.00018071,2]
[335587609,1724345439302,-839.287251,0.00018071,2]
[335587610,1724345439313,-2542.857212,0.00018071,2]
[335587611,1724345439323,-151.0,0.00018071,2]
[335587612,1724345439332,-2542.857212,0.00018071,2]
[335587613,1724345439342,-151.0,0.00018071,2]
[335587614,1724345439352,-574.44735433,0.00018135,2]
[335587615,1724345439363,-285.101619,0.0001847,2]
[335587616,1724345439373,-285.101619,0.0001847,2]
[335587617,1724345439384,-2542.857212,0.0001847,2]
[335587618,1724345439394,-2542.857212,0.0001847,2]
[335587619,1724345439405,-151.0,0.0001847,2]
[335587620,1724345439415,-151.0,0.0001847,2]
[335587621,1724345439425,-49204.96855654,0.0001847,2]
[335587622,1724345439436,-802.23891433,0.00018497,2]
[335587623,1724345439446,-500.0,0.00018521,2]
[335587624,1724345439456,-5623.26419453,0.00018553,2]
[335587625,1724345439467,-1909.01025163,0.0001856,2]
[335587626,1724345439479,-151.0,0.0001857,2]
[335587627,1724345439489,-151.0,0.0001857,2]
[335587628,1724345439500,-151.0,0.0001857,2]
[335587629,1724345439511,-485.242987,0.0001857,2]
[335587630,1724345439522,-485.242987,0.0001857,2]
[335587631,1724345439532,-151.0,0.0001857,2]
[335587632,1724345439543,-151.0,0.0001857,2]
[335587633,1724345439554,-306.488062,0.0001857,2]
[335587634,1724345439565,-306.488062,0.0001857,2]
[335587635,1724345439575,-555.371584,0.0001857,2]
[335587636,1724345439586,-308.491386,0.0001857,2]
[335587637,1724345439596,-555.371584,0.0001857,2]
[335587639,1724345439608,-308.491386,0.0001857,2]
[335587641,1724345439618,-374.879594,0.0001857,2]
[335587642,1724345439629,-151.0,0.0001857,2]
[335587644,1724345439638,-151.0,0.0001857,2]
[335587645,1724345439649,-374.879594,0.0001857,2]
[335587646,1724345439660,-151.0,0.0001857,2]
[335587648,1724345439671,-151.0,0.0001857,2]
[335587650,1724345439683,-151.0,0.0001857,2]
[335587652,1724345439693,-616.144243,0.0001857,2]
[335587653,1724345439703,-616.144243,0.0001857,2]
[335587654,1724345439715,-616.144243,0.0001857,2]
[335587655,1724345439725,-616.144243,0.0001857,2]
[335587656,1724345439736,-838.596389,0.0001857,2]
[335587657,1724345439748,-838.596389,0.0001857,2]
[335587658,1724345439758,-838.596389,0.0001857,2]
[335587659,1724345439769,-838.596389,0.0001857,2]
[335587660,1724345439780,-151.0,0.0001857,2]
[335587667,1724345440073,-151.0,0.0001857,2]
[335587668,1724345440084,-151.0,0.0001857,2]
[335587669,1724345440094,-160.612752,0.0001857,2]
[335587670,1724345440104,-285.101619,0.0001857,2]
[335587671,1724345440113,-285.101619,0.0001857,2]
[335587673,1724345440123,-285.101619,0.0001857,2]
[335587675,1724345440132,-839.287251,0.0001857,2]
[335587677,1724345440142,-285.101619,0.0001857,2]
[335587679,1724345440152,-839.287251,0.0001857,2]
[335587681,1724345440161,-839.287251,0.0001857,2]
[335587683,1724345440171,-839.287251,0.0001857,2]
[335587685,1724345440180,-2542.857212,0.0001857,2]
[335587687,1724345440190,-2542.857212,0.0001857,2]
[335587688,1724345440205,-151.0,0.0001857,2]
[335587689,1724345440215,-151.0,0.0001857,2]
[335587690,1724345440225,-2542.857212,0.0001857,2]
[335587691,1724345440235,-2542.857212,0.0001857,2]
[335587692,1724345440246,-243.05376,0.0001857,2]
[335587693,1724345440258,-35172.06002579,0.00018579,2]
[335587694,1724345440270,-616.144243,0.00018579,2]
[335587695,1724345440281,-616.144243,0.00018579,2]
[335587696,1724345440292,-838.596389,0.00018579,2]
[335587697,1724345440304,-838.596389,0.00018579,2]
[335587698,1724345440323,-151.0,0.00018579,2]
[335587699,1724345440334,-285.101619,0.00018579,2]
[335587700,1724345440344,-285.101619,0.00018579,2]
[335587701,1724345440352,-839.287251,0.00018579,2]
[335587702,1724345440362,-839.287251,0.00018579,2]
[335587703,1724345440372,-2542.857212,0.00018579,2]
[335587704,1724345440381,-151.0,0.00018579,2]
[335587705,1724345440391,-2542.857212,0.00018579,2]
[335587706,1724345440400,-151.0,0.0001858,2]
[335587707,1724345440411,-151.0,0.0001858,2]
[335587708,1724345440422,-151.0,0.0001858,2]
[335587709,1724345440432,-151.0,0.0001858,2]
[335587710,1724345440442,-151.0,0.0001858,2]
[335587711,1724345440452,-485.242987,0.0001858,2]
[335587712,1724345440464,-485.242987,0.0001858,2]
[335587713,1724345440474,-181.68851048,0.0001858,2]
[335587714,1724345440485,-306.488062,0.0001858,2]
[335587715,1724345440496,-306.488062,0.0001858,2]
[335587716,1724345440507,-374.879594,0.0001858,2]
[335587717,1724345440520,-374.879594,0.0001858,2]
[335587718,1724345440531,-150.112233,0.000186,2]
[335587719,1724345440541,-151.0,0.00018659,2]
[335587720,1724345440551,-151.0,0.00018659,2]
[335587721,1724345440561,-1119.898757,0.00018659,2]
[335587722,1724345440571,-1119.898757,0.00018659,2]
[335587723,1724345440581,-151.0,0.0001866,2]
[335587724,1724345440592,-151.0,0.0001866,2]
[335587725,1724345440602,-1119.898757,0.0001866,2]
[335587726,1724345440612,-1119.898757,0.0001866,2]
[335587727,1724345440621,-151.0,0.0001866,2]
[335587728,1724345440631,-151.0,0.0001866,2]
[335587729,1724345440640,-151.0,0.0001866,2]
[335587730,1724345440650,-151.0,0.0001866,2]
[335587731,1724345440659,-151.0,0.0001866,2]
[335587732,1724345440668,-151.0,0.0001866,2]
[335587733,1724345440677,-151.0,0.0001866,2]
[335587734,1724345440687,-151.0,0.0001866,2]
[335587735,1724345440697,-151.0,0.0001866,2]
[335587736,1724345440707,-151.0,0.0001866,2]
[335587737,1724345440716,-151.0,0.0001866,2]
[335587738,1724345440725,-151.0,0.0001866,2]
[335587739,1724345440735,-151.0,0.0001866,2]
[335587740,1724345440744,-179.12316,0.0001866,2]
[335587741,1724345440754,-179.12316,0.0001866,2]
[335587742,1724345440764,-179.12316,0.0001866,2]
[335587743,1724345440774,-179.12316,0.0001866,2]
[335587744,1724345440783,-151.0,0.0001866,2]
[335587745,1724345440792,-151.0,0.0001866,2]
[335587746,1724345440805,-151.0,0.0001866,2]
[335587747,1724345440818,-151.0,0.0001866,2]
[335587748,1724345440827,-151.0,0.0001866,2]
[335587749,1724345440837,-151.0,0.0001866,2]
[335587750,1724345440846,-151.0,0.0001866,2]
[335587751,1724345440857,-151.0,0.0001866,2]
[335587752,1724345440869,-151.0,0.0001866,2]
[335587753,1724345440878,-151.0,0.0001866,2]
[335587754,1724345440887,-151.0,0.0001866,2]
[335587755,1724345440898,-485.242987,0.0001866,2]
[335587756,1724345440907,-485.242987,0.0001866,2]
[335587757,1724345440927,-151.0,0.0001866,2]
[335587758,1724345440941,-151.0,0.0001866,2]
[335587759,1724345440951,-151.0,0.0001866,2]
[335587760,1724345440961,-151.0,0.0001866,2]
[335587761,1724345440970,-306.488062,0.0001866,2]
[335587762,1724345440980,-306.488062,0.0001866,2]
[335587763,1724345440991,-555.371584,0.0001866,2]
[335587764,1724345441002,-555.371584,0.0001866,2]
[335587765,1724345441012,-308.491386,0.0001866,2]
[335587766,1724345441022,-308.491386,0.0001866,2]
[335587767,1724345441031,-555.371584,0.0001866,2]
[335587768,1724345441041,-555.371584,0.0001866,2]
[335587769,1724345441052,-308.491386,0.0001866,2]
[335587770,1724345441061,-308.491386,0.0001866,2]
[335587771,1724345441071,-374.879594,0.0001866,2]
[335587772,1724345441081,-151.0,0.0001866,2]
[335587773,1724345441091,-151.0,0.0001866,2]
[335587774,1724345441101,-374.879594,0.0001866,2]
[335587775,1724345441111,-151.0,0.0001866,2]
[335587776,1724345441121,-151.0,0.0001866,2]
[335587777,1724345441131,-151.0,0.0001866,2]
[335587778,1724345441141,-151.0,0.0001866,2]
[335587779,1724345441151,-151.0,0.0001866,2]
[335587780,1724345441162,-151.0,0.0001866,2]
[335587781,1724345441172,-616.144243,0.0001866,2]
[335587782,1724345441182,-616.144243,0.0001866,2]
[335587783,1724345441191,-616.144243,0.0001866,2]
[335587784,1724345441202,-616.144243,0.0001866,2]
[335587785,1724345441212,-838.596389,0.0001866,2]
[335587786,1724345441222,-838.596389,0.0001866,2]
[335587787,1724345441235,-838.596389,0.0001866,2]
[335587788,1724345441246,-838.596389,0.0001866,2]
[335587789,1724345441258,-151.0,0.0001866,2]
[335587790,1724345441270,-151.0,0.0001866,2]
[335587791,1724345441284,-285.101619,0.0001866,2]
[335587792,1724345441298,-285.101619,0.0001866,2]
[335587793,1724345441309,-285.101619,0.0001866,2]
[335587794,1724345441322,-285.101619,0.0001866,2]
[335587795,1724345441334,-839.287251,0.0001866,2]
[335587796,1724345441346,-839.287251,0.0001866,2]
[335587797,1724345441358,-839.287251,0.0001866,2]
[335587798,1724345441372,-839.287251,0.0001866,2]
[335587799,1724345441384,-2542.857212,0.0001866,2]
[335587800,1724345441397,-2542.857212,0.0001866,2]
[335587801,1724345441409,-151.0,0.0001866,2]
[335587802,1724345441420,-151.0,0.0001866,2]
[335587803,1724345441432,-2542.857212,0.0001866,2]
[335587804,1724345441442,-2542.857212,0.0001866,2]
[335587805,1724345441453,-151.0,0.00018661,2]
[335587806,1724345441463,-151.0,0.00018661,2]
[335587807,1724345441473,-154.638878,0.00018661,2]
[335587808,1724345441484,-154.638878,0.00018661,2]
[335587809,1724345441494,-151.0,0.00018661,2]
[335587810,1724345441504,-151.0,0.00018661,2]
[335587811,1724345441514,-151.0,0.00018661,2]
[335587812,1724345441524,-599.391826,0.00018661,2]
[335587813,1724345441536,-599.391826,0.00018661,2]
[335587814,1724345441547,-572.984451,0.00018661,2]
[335587815,1724345441560,-572.984451,0.00018661,2]
[335587816,1724345441573,-151.0,0.00018669,2]
[335587817,1724345441584,-151.0,0.0001867,2]
[335587818,1724345441595,-151.0,0.0001867,2]
[335587819,1724345441606,-154.638878,0.0001867,2]
[335587820,1724345441617,-154.638878,0.0001867,2]
[335587821,1724345441629,-151.0,0.0001867,2]
[335587822,1724345441641,-151.0,0.0001867,2]
[335587823,1724345441653,-219.921065,0.0001867,2]
[335587824,1724345441663,-151.0,0.0001867,2]
[335587825,1724345441676,-599.391826,0.0001867,2]
[335587826,1724345441687,-599.391826,0.0001867,2]
[335587827,1724345441698,-151.0,0.0001867,2]
[335587828,1724345441709,-151.0,0.0001867,2]
[335587829,1724345441724,-599.391826,0.0001867,2]
[335587830,1724345441735,-599.391826,0.0001867,2]
[335587831,1724345441747,-572.984451,0.0001867,2]
[335587832,1724345441758,-572.984451,0.0001867,2]
[335587833,1724345441769,-572.984451,0.0001867,2]
[335587834,1724345441780,-572.984451,0.0001867,2]
[335587835,1724345441792,-328.487412,0.0001867,2]
[335587836,1724345441805,-328.487412,0.0001867,2]
[335587837,1724345441815,-328.487412,0.0001867,2]
[335587838,1724345441826,-328.487412,0.0001867,2]
[335587839,1724345441836,-151.0,0.0001867,2]
[335587840,1724345441847,-151.0,0.0001867,2]
[335587841,1724345441860,-151.0,0.0001867,2]
[335587842,1724345441873,-151.0,0.0001867,2]
[335587843,1724345441884,-205.533895,0.0001867,2]
[335587844,1724345441894,-151.0,0.0001867,2]
[335587845,1724345441907,-151.0,0.0001867,2]
[335587846,1724345441918,-151.0,0.0001867,2]
[335587847,1724345441930,-151.0,0.0001867,2]
[335587848,1724345441943,-151.0,0.0001867,2]
[335587849,1724345441953,-151.0,0.0001867,2]
[335587850,1724345441964,-151.0,0.0001867,2]
[335587851,1724345441976,-151.0,0.0001867,2]
[335587852,1724345441987,-151.0,0.0001867,2]
[335587853,1724345441998,-182.708209,0.0001867,2]
[335587854,1724345442010,-182.708209,0.0001867,2]
[335587855,1724345442020,-182.708209,0.0001867,2]
[335587856,1724345442030,-182.708209,0.0001867,2]
[335587857,1724345442042,-182.708209,0.0001867,2]
[335587858,1724345442053,-182.708209,0.0001867,2]
[335587859,1724345442064,-151.0,0.0001867,2]
[335587860,1724345442074,-151.0,0.0001867,2]
[335587861,1724345442086,-152.56313,0.0001867,2]
[335587862,1724345442098,-151.0,0.0001867,2]
[335587863,1724345442108,-151.0,0.0001867,2]
[335587864,1724345442119,-151.0,0.0001867,2]
[335587865,1724345442130,-151.0,0.0001867,2]
[335587866,1724345442140,-151.737301,0.0001867,2]
[335587867,1724345442151,-151.0,0.0001867,2]
[335587868,1724345442161,-151.0,0.0001867,2]
[335587869,1724345442172,-151.0,0.0001867,2]
[335587870,1724345442182,-151.0,0.0001867,2]
[335587871,1724345442191,-151.0,0.0001867,2]
[335587872,1724345442201,-151.0,0.0001867,2]
[335587873,1724345442211,-253.304353,0.0001867,2]
[335587874,1724345442221,-166.33659,0.0001867,2]
[335587875,1724345442232,-166.33659,0.0001867,2]
[335587876,1724345442242,-166.33659,0.0001867,2]
[335587877,1724345442254,-166.33659,0.0001867,2]
[335587878,1724345442263,-166.33659,0.0001867,2]
[335587879,1724345442273,-166.33659,0.0001867,2]
[335587880,1724345442285,-166.33659,0.0001867,2]
[335587881,1724345442295,-166.33659,0.0001867,2]
[335587882,1724345442307,-166.33659,0.0001867,2]
[335587883,1724345442317,-166.33659,0.0001867,2]
[335587884,1724345442327,-151.0,0.0001867,2]
[335587885,1724345442337,-151.0,0.0001867,2]
[335587886,1724345442348,-151.0,0.0001867,2]
[335587887,1724345442361,-151.0,0.0001867,2]
[335587888,1724345442372,-177.211,0.0001867,2]
[335587889,1724345442384,-182.718658,0.0001867,2]
[335587890,1724345442394,-182.718658,0.0001867,2]
[335587891,1724345442404,-182.718658,0.0001867,2]
[335587892,1724345442415,-182.718658,0.0001867,2]
[335587894,1724345442425,-182.718658,0.0001867,2]
[335587895,1724345442434,-182.718658,0.0001867,2]
[335587896,1724345442443,-182.718658,0.0001867,2]
[335587897,1724345442453,-1119.898757,0.0001867,2]
[335587899,1724345442463,-182.718658,0.0001867,2]
[335587901,1724345442475,-1119.898757,0.0001867,2]
[335587904,1724345442485,-182.718658,0.0001867,2]
[335587909,1724345442495,-1119.898757,0.0001867,2]
[335587913,1724345442507,-182.718658,0.0001867,2]
[335587914,1724345442518,-1119.898757,0.0001867,2]
[335587915,1724345442528,-1119.898757,0.0001867,2]
[335587916,1724345442538,-1119.898757,0.0001867,2]
[335587917,1724345442549,-1119.898757,0.0001867,2]
[335587918,1724345442559,-1119.898757,0.0001867,2]
[335587919,1724345442570,-151.0,0.0001867,2]
[335587920,1724345442579,-151.0,0.0001867,2]
[335587921,1724345442589,-151.0,0.0001867,2]
[335587922,1724345442598,-151.0,0.0001867,2]
[335587923,1724345442618,-261.589248,0.0001867,2]
[335587924,1724345442627,-151.0,0.0001867,2]
[335587925,1724345442637,-151.0,0.0001867,2]
[335587926,1724345442648,-151.0,0.0001867,2]
[335587927,1724345442658,-151.0,0.0001867,2]
[335587928,1724345442668,-151.0,0.0001867,2]